bitfinex/quotes_SOLUSD_20250609
["timestamp","ask_amount","ask_price","bid_price","bid_amount"]
[1749487239691,4.77875085,156.33,156.32,19.68754859]
[1749487239888,4.77886609,156.33,156.32,19.68754859]
[1749487241721,11.17559096,156.33,156.32,19.68754859]
[1749487241904,6.39672487,156.33,156.32,19.68754859]
[1749487242104,11.17780894,156.33,156.32,19.68754859]
[1749487242838,6.39672487,156.33,156.32,19.68754859]
[1749487243195,11.17846293,156.33,156.31,61.06754859]
[1749487243521,4.78225754,156.32,156.29,39.15344859]
[1749487243693,4.78234844,156.31,156.29,80.47344859]
[1749487244036,6.39672487,156.33,156.29,80.47344859]
[1749487244337,4.78229483,156.32,156.3,19.68754859]
[1749487244530,6.39672487,156.33,156.3,19.68754859]
[1749487244531,4.78230395,156.31,156.3,19.68754859]
[1749487244827,6.39672487,156.33,156.3,19.68754859]
[1749487245002,4.78235938,156.32,156.3,19.68754859]
[1749487245204,6.39672487,156.33,156.3,19.68754859]
[1749487245413,4.78229125,156.32,156.3,19.68754859]
[1749487245610,6.39672487,156.33,156.3,19.68754859]
[1749487245807,11.17961067,156.32,156.3,19.68754859]
[1749487246011,6.39725223,156.32,156.3,19.68754859]
[1749487246414,6.39683787,156.33,156.3,19.68754859]
[1749487246823,6.39683787,156.33,156.31,19.68754859]
[1749487247702,6.39631572,156.34,156.31,19.68754859]
[1749487248116,6.39605096,156.35,156.33,19.68754859]
[1749487249228,22.38379299,156.37,156.33,19.68754859]
[1749487249447,4.78187874,156.34,156.33,19.68754859]
[1749487249923,4.78187874,156.34,156.33,60.98754859]
[1749487250715,4.78187874,156.34,156.33,67.38427346]
[1749487250927,6.39427073,156.39,156.33,67.38427346]
[1749487251135,6.39427073,156.39,156.35,19.68754859]
[1749487251520,6.39427073,156.39,156.36,19.68754859]
[1749487251832,6.39427073,156.39,156.37,19.68754859]
[1749487252018,19.68754859,156.42,156.35,7.9684]
[1749487252019,6.39386189,156.4,156.38,19.68754859]
[1749487252613,6.39386189,156.4,156.37,19.68754859]
[1749487253608,19.68754859,156.38,156.31,6.3184]
[1749487253803,19.68754859,156.37,156.32,57.10754859]
[1749487254029,6.39549756,156.36,156.32,57.10754859]
[1749487254738,6.39549756,156.36,156.33,19.68754859]
[1749487255611,6.3951641,156.37,156.34,19.68754859]
[1749487256935,6.39467962,156.38,156.34,19.68754859]
[1749487257643,26.08222821,156.38,156.32,37.42]
[1749487257822,26.08222821,156.38,156.34,19.68754859]
[1749487259137,26.08222821,156.38,156.32,37.42]
[1749487259338,26.08222821,156.38,156.34,19.68754859]
[1749487259939,19.68754859,156.37,156.33,19.68754859]
[1749487260333,19.68754859,156.37,156.32,98.36754859]
[1749487261538,4.78405548,156.36,156.32,98.36754859]
[1749487261832,6.39549756,156.36,156.33,19.68754859]
[1749487262418,6.39549756,156.36,156.34,19.68754859]
[1749487262822,6.39549756,156.36,156.33,19.68754859]
[1749487263638,6.39508857,156.37,156.33,19.68754859]
[1749487263815,26.08263716,156.37,156.33,19.68754859]
[1749487264025,26.08263716,156.37,156.32,72.36754859]
[1749487264368,18.64964886,156.36,156.27,7.644]
[1749487264651,19.68754859,156.34,156.29,19.68754859]
[1749487264856,19.68754859,156.36,156.32,19.68754859]
[1749487265023,42.07035858,156.37,156.32,19.68754859]
[1749487268843,19.68754859,156.36,156.31,19.68754859]
[1749487269152,24.47331056,156.35,156.27,19.064]
[1749487269329,19.68754859,156.32,156.27,19.064]
[1749487269526,24.47472073,156.31,156.27,12.9215]
[1749487269847,19.68754859,156.32,156.27,32.60904859]
[1749487270157,6.39754334,156.31,156.27,32.60904859]
[1749487270524,22.39140169,156.31,156.27,32.60904859]
[1749487270718,42.07895028,156.31,156.27,12.9215]
[1749487270933,22.39140169,156.31,156.27,32.60904859]
[1749487272527,19.68754859,156.3,156.27,12.9215]
[1749487272721,42.07895028,156.31,156.27,32.60904859]
[1749487272923,6.39754334,156.31,156.28,19.68754859]
[1749487274844,6.39713408,156.32,156.28,19.68754859]
[1749487275467,6.18191637,156.32,156.28,19.68754859]
[1749487275661,6.18191637,156.32,156.27,12.9215]
[1749487275662,19.68754859,156.31,156.27,12.9215]
[1749487275973,41.86230016,156.32,156.27,32.60904859]
[1749487276143,41.86230016,156.32,156.27,12.9215]
[1749487276347,19.68754859,156.31,156.27,32.60904859]
[1749487276953,41.86230016,156.32,156.27,32.60904859]
[1749487277166,4.7855635,156.31,156.27,32.60904859]
[1749487277468,41.86230016,156.32,156.27,32.60904859]
[1749487277675,6.18191637,156.32,156.29,19.68754859]
[1749487278587,6.18191637,156.32,156.3,19.68754859]
[1749487279094,6.39672487,156.33,156.3,19.68754859]
[1749487279297,26.08427346,156.33,156.29,19.68754859]
[1749487279467,26.08427346,156.33,156.28,26.11014859]
[1749487279853,6.39672487,156.33,156.29,19.68754859]
[1749487280051,26.08427346,156.33,156.28,26.11014859]
[1749487280358,19.68754859,156.32,156.28,26.11014859]
[1749487280677,42.07608565,156.33,156.28,26.11014859]
[1749487281053,19.68754859,156.32,156.28,26.11014859]
[1749487281548,19.68754859,156.32,156.27,73.82904859]
[1749487282153,19.68754859,156.32,156.27,54.1415]
[1749487282382,19.68754859,156.32,156.27,73.82904859]
[1749487282678,6.39754334,156.31,156.27,73.82904859]
[1749487283052,6.39754334,156.31,156.27,32.60904859]
[1749487285464,6.39754334,156.31,156.28,19.68754859]
[1749487286758,6.39754334,156.31,156.27,12.9215]
[1749487286759,6.39754334,156.31,156.27,32.60904859]
[1749487288371,6.39754334,156.31,156.27,12.9215]
[1749487288563,6.39754334,156.31,156.27,32.60904859]
[1749487290388,6.39754334,156.31,156.28,19.68754859]
[1749487290597,6.39713408,156.32,156.28,19.68754859]
[1749487291094,6.39713408,156.32,156.29,19.68754859]
[1749487291809,6.39713408,156.32,156.28,19.68754859]
[1749487293083,6.39713408,156.32,156.29,19.68754859]
[1749487293285,6.39713408,156.32,156.27,12.9215]
[1749487293588,6.39713408,156.32,156.29,19.68754859]
[1749487293995,6.3968628,156.33,156.31,19.68754859]
[1749487295085,35.67826758,156.35,156.3,19.68754859]
[1749487295086,6.39631572,156.34,156.3,19.68754859]
[1749487295988,6.39631572,156.34,156.29,47.5221]
[1749487296191,6.39631572,156.34,156.3,19.68754859]
[1749487298498,6.39631572,156.34,156.31,19.68754859]
[1749487298676,6.39631572,156.34,156.32,19.68754859]
[1749487299591,6.39590661,156.35,156.31,19.68754859]
[1749487299896,26.0834552,156.35,156.31,19.68754859]
[1749487300283,6.39590661,156.35,156.31,19.68754859]
[1749487301103,19.68754859,156.35,156.31,19.68754859]
[1749487302300,6.39631572,156.34,156.31,19.68754859]
[1749487302673,6.39631572,156.34,156.32,19.68754859]
[1749487303198,11.17956371,156.35,156.33,19.68754859]
[1749487303403,6.39598988,156.35,156.33,19.68754859]
[1749487304177,6.39508857,156.37,156.34,19.68754859]
[1749487304484,4.78276339,156.36,156.33,19.68754859]
[1749487304797,26.08263716,156.37,156.33,19.68754859]
[1749487304999,4.7827712,156.36,156.33,19.68754859]
[1749487305303,26.08263716,156.37,156.33,19.68754859]
[1749487305675,6.39508857,156.37,156.34,19.68754859]
[1749487306495,6.39508857,156.37,156.35,19.68754859]
[1749487306702,6.39508857,156.37,156.33,19.68754859]
[1749487306995,26.08263716,156.37,156.33,19.68754859]
[1749487307573,24.46956862,156.36,156.32,32.59804859]
[1749487307783,19.68754859,156.36,156.32,32.59804859]
[1749487307988,24.46982197,156.35,156.32,11.32]
[1749487308180,19.68754859,156.33,156.32,11.32]
[1749487308396,6.39713408,156.32,156.28,1.5638]
[1749487308709,19.68754859,156.29,156.24,1.5638]
[1749487309019,19.68754859,156.28,156.24,1.5638]
[1749487309208,19.68754859,156.27,156.24,1.5638]
[1749487309384,19.68754859,156.27,156.22,74.17384859]
[1749487309805,19.68754859,156.25,156.22,54.4863]
[1749487310184,19.68754859,156.26,156.22,54.4863]
[1749487310385,6.4,156.25,156.22,54.4863]
[1749487310804,25.04473743,156.37,156.25,20.21344886]
[1749487310982,45.68754859,156.34,156.29,19.68754859]
[1749487311382,19.68754859,156.32,156.28,31.00754859]
[1749487311927,24.46858879,156.33,156.28,31.00754859]
[1749487312215,19.68754859,156.33,156.28,31.00754859]
[1749487312384,6.39713408,156.32,156.28,31.00754859]
[1749487312707,6.39713408,156.32,156.29,19.68754859]
[1749487313406,6.39680314,156.33,156.3,19.68754859]
[1749487313907,6.39680314,156.33,156.29,19.68754859]
[1749487314693,26.08435173,156.33,156.29,19.68754859]
[1749487315517,30.86600289,156.33,156.29,19.68754859]
[1749487315688,30.8661567,156.33,156.29,19.68754859]
[1749487315888,26.08435173,156.33,156.29,19.68754859]
[1749487316110,30.86600289,156.33,156.29,19.68754859]
[1749487316299,26.08435173,156.33,156.29,19.68754859]
[1749487316589,6.39680314,156.33,156.3,19.68754859]
[1749487321519,6.39680314,156.33,156.31,19.68754859]
[1749487322229,6.39680314,156.33,156.3,19.68754859]
[1749487322818,6.39680314,156.33,156.28,11.32]
[1749487322819,19.68754859,156.31,156.28,11.32]
[1749487322996,19.68754859,156.3,156.28,11.32]
[1749487323814,6.39836201,156.29,156.28,11.32]
[1749487325919,6.39795265,156.3,156.28,11.32]
[1749487327409,26.08550124,156.3,156.28,11.32]
[1749487328198,11.18153011,156.29,156.28,11.32]
[1749487328624,6.39836201,156.29,156.28,11.32]
[1749487329121,6.39836201,156.29,156.28,31.00754859]
[1749487329420,6.39713408,156.32,156.28,31.00754859]
[1749487329625,6.39713408,156.32,156.31,19.68754859]
[1749487330006,6.39631572,156.34,156.31,19.68754859]
[1749487330334,15.98982621,156.35,156.33,19.68754859]
[1749487330335,6.39590661,156.35,156.33,19.68754859]
[1749487330508,6.39590661,156.35,156.34,19.68754859]
[1749487330829,6.39590661,156.35,156.33,19.68754859]
[1749487331326,22.38280999,156.37,156.33,19.68754859]
[1749487332212,22.38280999,156.37,156.34,19.68754859]
[1749487332522,4.77903261,156.36,156.34,19.68754859]
[1749487332731,4.77903261,156.35,156.31,47.4964]
[1749487332925,6.39508857,156.37,156.34,19.68754859]
[1749487333129,6.39508857,156.37,156.35,19.68754859]
[1749487333130,4.77936318,156.36,156.35,19.68754859]
[1749487333507,11.17486074,156.36,156.35,19.68754859]
[1749487333702,4.77936318,156.36,156.35,19.68754859]
[1749487334407,11.1732866,156.38,156.35,19.68754859]
[1749487334739,6.3934531,156.41,156.37,19.68754859]
[1749487334946,4.77820134,156.4,156.38,19.68754859]
[1749487335110,4.77820134,156.39,156.37,19.68754859]
[1749487335311,4.77820134,156.38,156.37,19.68754859]
[1749487335531,6.39467962,156.38,156.37,19.68754859]
[1749487336015,11.17288096,156.38,156.37,19.68754859]
[1749487336216,6.39467962,156.38,156.37,19.68754859]
[1749487336442,6.39467962,156.38,156.36,19.68754859]
[1749487336638,11.17288096,156.38,156.36,19.68754859]
[1749487336864,6.39467962,156.38,156.34,30.94754859]
[1749487337133,11.17288096,156.38,156.36,19.68754859]
[1749487337437,6.39467962,156.38,156.36,19.68754859]
[1749487337644,19.68754859,156.4,156.34,11.26]
[1749487337645,6.39386189,156.4,156.37,19.68754859]
[1749487337845,6.39386189,156.4,156.38,19.68754859]
[1749487339357,6.39359964,156.41,156.39,19.68754859]
[1749487339520,4.77554958,156.4,156.39,19.68754859]
[1749487339853,4.77437292,156.4,156.38,19.68754859]
[1749487340047,11.16797256,156.41,156.38,19.68754859]
[1749487340357,11.16742594,156.41,156.38,19.68754859]
[1749487340737,6.39359964,156.41,156.38,19.68754859]
[1749487342761,11.16535166,156.41,156.38,19.68754859]
[1749487343257,6.39359964,156.41,156.38,19.68754859]
[1749487343625,6.39359964,156.41,156.39,19.68754859]
[1749487344935,6.39359964,156.41,156.38,19.68754859]
[1749487345227,6.39359964,156.41,156.36,1.6271]
[1749487345228,6.39359964,156.41,156.39,19.68754859]
[1749487345827,6.39359964,156.41,156.4,19.68754859]
[1749487346035,6.39305567,156.42,156.4,19.68754859]
[1749487346237,6.39305567,156.42,156.41,19.68754859]
[1749487347755,6.39305567,156.42,156.4,19.68754859]
[1749487348549,6.39305567,156.42,156.39,19.68754859]
[1749487348777,22.37566658,156.42,156.39,19.68754859]
[1749487348967,19.68754859,156.41,156.37,6.3917]
[1749487349264,19.68754859,156.39,156.35,19.68754859]
[1749487349555,6.39467962,156.38,156.34,11.26]
[1749487349773,6.39467962,156.38,156.34,30.94754859]
[1749487351665,6.39467962,156.38,156.34,11.26]
[1749487352072,6.39467962,156.38,156.34,30.94754859]
[1749487353555,19.68754859,156.37,156.34,11.26]
[1749487353967,19.68754859,156.36,156.34,11.26]
[1749487354268,22.38137868,156.38,156.34,11.26]
[1749487354481,42.06892727,156.38,156.34,30.94754859]
[1749487355090,19.68754859,156.37,156.34,11.26]
[1749487355555,6.39549756,156.36,156.34,11.26]
[1749487356697,6.39427073,156.39,156.35,19.68754859]
[1749487356998,26.08181932,156.39,156.35,19.68754859]
[1749487357559,6.39427073,156.39,156.35,19.68754859]
[1749487358665,6.39427073,156.39,156.37,19.68754859]
[1749487359065,6.39427073,156.39,156.36,19.68754859]
[1749487359482,22.37994756,156.39,156.35,19.68754859]
[1749487359861,46.8358916,156.39,156.35,19.68754859]
[1749487360082,42.06749615,156.39,156.35,19.68754859]
[1749487360271,22.37994756,156.39,156.35,19.68754859]
[1749487360590,27.14834301,156.39,156.35,19.68754859]
[1749487361675,46.8358916,156.39,156.35,19.68754859]
[1749487361992,42.06749615,156.39,156.34,32.49584859]
[1749487362289,19.68754859,156.37,156.34,11.26]
[1749487362590,24.45594404,156.37,156.34,11.26]
[1749487362786,19.68754859,156.37,156.34,11.26]
[1749487362976,24.45594404,156.37,156.34,11.26]
[1749487363284,19.68754859,156.37,156.34,11.26]
[1749487363483,19.68754859,156.36,156.34,11.26]
[1749487363889,6.39590661,156.35,156.34,11.26]
[1749487365869,6.39549756,156.36,156.34,11.26]
[1749487369678,11.1719134,156.36,156.34,11.26]
[1749487370277,30.85946199,156.36,156.34,11.26]
[1749487370581,19.68754859,156.35,156.3,21.18764859]
[1749487370803,19.68754859,156.33,156.29,17.6327]
[1749487371028,19.68754859,156.33,156.29,37.32024859]
[1749487372199,6.39713408,156.32,156.29,17.6327]
[1749487372404,26.08468267,156.32,156.29,11.2]
[1749487373799,6.39713408,156.32,156.29,11.2]
[1749487374824,26.08468267,156.32,156.29,11.2]
[1749487375127,46.85376126,156.32,156.29,11.2]
[1749487375327,42.07751787,156.32,156.29,11.2]
[1749487375630,19.68754859,156.31,156.29,11.2]
[1749487375832,19.68754859,156.3,156.24,6.1878]
[1749487376023,19.68754859,156.27,156.23,11.2]
[1749487376196,19.68754859,156.24,156.23,11.2]
[1749487376517,26.08795821,156.24,156.23,11.2]
[1749487376723,6.40040962,156.24,156.23,11.2]
[1749487378325,6.4,156.25,156.23,11.2]
[1749487379298,26.08754859,156.25,156.23,11.2]
[1749487379523,6.4,156.25,156.23,11.2]
[1749487392955,6.39959042,156.26,156.23,19.68754859]
[1749487393349,6.39959042,156.26,156.21,19.68754859]
[1749487393350,19.68754859,156.25,156.21,19.68754859]
[1749487393588,19.68754859,156.25,156.2,19.68754859]
[1749487393938,19.68754859,156.25,156.21,19.68754859]
[1749487394975,6.40040962,156.24,156.2,19.68754859]
[1749487397176,6.40040962,156.24,156.19,21.29314859]
[1749487397177,42.08898227,156.24,156.19,21.29314859]
[1749487397346,19.68754859,156.23,156.19,21.29314859]
[1749487397653,19.68754859,156.23,156.19,1.6056]
[1749487397849,19.68754859,156.22,156.18,30.90754859]
[1749487398461,19.68754859,156.21,156.18,11.22]
[1749487398669,6.40204865,156.2,156.18,11.22]
[1749487400564,22.40595736,156.21,156.18,11.22]
[1749487401250,6.40163881,156.21,156.18,11.22]
[1749487401960,26.0891874,156.21,156.18,11.22]
[1749487402548,6.40286848,156.18,156.15,21.22624859]
[1749487402744,6.40286848,156.18,156.13,11.18]
[1749487402745,26.09041707,156.18,156.14,19.68754859]
[1749487403076,42.09758828,156.18,156.14,19.68754859]
[1749487404678,6.40286848,156.18,156.14,19.68754859]
[1749487405672,26.09041707,156.18,156.14,19.68754859]
[1749487407758,26.09041707,156.18,156.13,11.18]
[1749487407759,19.68754859,156.17,156.13,11.18]
[1749487407969,19.68754859,156.17,156.13,30.86754859]
[1749487409179,6.40368852,156.16,156.13,30.86754859]
[1749487415355,6.40245854,156.19,156.15,19.68754859]
[1749487415562,6.40245854,156.19,156.16,19.68754859]
[1749487416172,6.40245854,156.19,156.17,19.68754859]
[1749487416558,6.40245854,156.19,156.18,19.68754859]
[1749487416805,6.40122903,156.22,156.18,19.68754859]
[1749487417085,6.40122903,156.22,156.21,19.68754859]
[1749487417290,22.40215975,156.24,156.21,19.68754859]
[1749487419516,6.40040962,156.24,156.23,19.68754859]
[1749487421794,11.16663973,156.26,156.23,21.32444859]
[1749487422094,6.39933612,156.27,156.25,19.68754859]
[1749487422388,6.39933612,156.27,156.26,19.68754859]
[1749487423775,6.39877143,156.28,156.26,19.68754859]
[1749487424096,6.39877143,156.28,156.27,19.68754859]
[1749487425282,6.39836201,156.29,156.27,19.68754859]
[1749487426296,6.39798746,156.3,156.28,19.68754859]
[1749487426598,6.39764729,156.31,156.29,19.68754859]
[1749487427009,6.39764729,156.31,156.28,19.68754859]
[1749487427699,6.39713408,156.32,156.28,19.68754859]
[1749487428302,11.16404159,156.32,156.28,19.68754859]
[1749487428597,6.39713408,156.32,156.29,19.68754859]
[1749487429698,6.39713408,156.32,156.3,19.68754859]
[1749487430277,6.39713408,156.32,156.29,21.22374859]
[1749487430881,6.39713408,156.32,156.26,40.88]
[1749487431197,6.39713408,156.32,156.29,19.68754859]
[1749487433974,6.39713408,156.32,156.3,19.68754859]
[1749487434533,6.39713408,156.32,156.29,19.68754859]
[1749487442808,22.38996928,156.32,156.29,19.68754859]
[1749487442987,22.38996928,156.32,156.28,19.68754859]
[1749487443179,22.38996928,156.32,156.27,19.68754859]
[1749487443180,42.07751787,156.32,156.27,19.68754859]
[1749487444392,42.07751787,156.32,156.26,40.88]
[1749487444594,19.68754859,156.3,156.26,60.56754859]
[1749487444815,19.68754859,156.29,156.25,12.6987]
[1749487444988,54.37563969,156.32,156.25,12.6987]
[1749487444989,19.68754859,156.27,156.25,11.14]
[1749487445196,26.0,156.29,156.25,11.14]
[1749487445393,45.68754859,156.29,156.25,11.14]
[1749487445994,6.39877143,156.28,156.25,30.82754859]
[1749487446312,6.39877143,156.28,156.25,11.14]
[1749487447389,22.39570001,156.28,156.25,11.14]
[1749487448495,42.0832486,156.28,156.25,11.14]
[1749487448695,19.68754859,156.27,156.25,11.14]
[1749487448899,19.68754859,156.26,156.22,19.68754859]
[1749487449304,19.68754859,156.25,156.21,21.19484859]
[1749487449549,6.40040962,156.24,156.21,21.19484859]
[1749487449720,6.40040962,156.24,156.2,17.2018]
[1749487449721,19.68754859,156.22,156.2,11.14]
[1749487450016,19.68754859,156.21,156.16,26.23054859]
[1749487450190,19.68754859,156.2,156.16,6.543]
[1749487451215,19.68754859,156.2,156.16,26.23054859]
[1749487451394,6.40204865,156.2,156.17,19.68754859]
[1749487451594,6.40204865,156.2,156.18,19.68754859]
[1749487451990,6.40204865,156.2,156.17,19.68754859]
[1749487453416,19.68754859,156.32,156.22,6.6396]
[1749487453618,19.68754859,156.32,156.24,19.68754859]
[1749487453619,19.68754859,156.28,156.24,19.68754859]
[1749487453918,19.68754859,156.27,156.23,19.68754859]
[1749487454714,6.39959042,156.26,156.23,19.68754859]
[1749487455114,6.39959042,156.26,156.24,19.68754859]
[1749487455709,40.44253292,156.29,156.25,19.68754859]
[1749487455710,6.39877143,156.28,156.25,19.68754859]
[1749487455921,32.39877143,156.28,156.25,19.68754859]
[1749487456517,32.39877143,156.28,156.22,64.98057656]
[1749487456518,32.39877143,156.28,156.26,19.68754859]
[1749487457114,26.0,156.28,156.27,19.68754859]
[1749487457322,32.39877143,156.28,156.26,19.68754859]
[1749487457624,6.39427073,156.39,156.29,51.23174886]
[1749487457813,6.39427073,156.39,156.37,19.68754859]
[1749487458010,6.3934531,156.41,156.38,19.68754859]
[1749487458705,6.3934531,156.41,156.39,19.68754859]
[1749487458913,6.3934531,156.41,156.38,19.68754859]
[1749487461924,19.68754859,156.4,156.36,11.1]
[1749487462321,19.68754859,156.4,156.36,30.78754859]
[1749487462705,19.68754859,156.4,156.36,11.1]
[1749487462901,19.68754859,156.38,156.36,11.1]
[1749487463125,47.10440578,156.41,156.36,19.68754859]
[1749487463304,42.06463445,156.41,156.36,19.68754859]
[1749487463829,42.06463445,156.41,156.37,19.68754859]
[1749487464019,22.37708586,156.41,156.38,19.68754859]
[1749487464218,11.14806443,156.41,156.38,19.68754859]
[1749487464423,6.3934531,156.41,156.38,19.68754859]
[1749487464817,6.3934531,156.41,156.39,19.68754859]
[1749487465609,6.3934531,156.41,156.38,19.68754859]
[1749487466508,6.3934531,156.41,156.39,19.68754859]
[1749487469912,6.3934531,156.41,156.38,19.68754859]
[1749487470927,6.3934531,156.41,156.39,19.68754859]
[1749487474235,6.3934531,156.41,156.4,19.68754859]
[1749487475031,6.39263568,156.43,156.4,19.68754859]
[1749487475336,22.37357857,156.44,156.41,19.68754859]
[1749487475735,42.06112716,156.44,156.39,1.5705]
[1749487475940,19.68754859,156.43,156.39,19.68754859]
[1749487476436,42.06112716,156.44,156.39,19.68754859]
[1749487479633,19.68754859,156.43,156.38,19.68754859]
[1749487479830,19.68754859,156.43,156.37,47.3392]
[1749487479831,19.68754859,156.42,156.37,67.02674859]
[1749487480229,19.68754859,156.42,156.37,78.10674859]
[1749487480430,19.68754859,156.41,156.37,78.10674859]
[1749487480829,32.18136454,156.51,156.4,19.68754859]
[1749487481030,6.39018467,156.49,156.48,19.68754859]
[1749487481218,19.68754859,156.55,156.48,19.68754859]
[1749487481423,6.38651168,156.58,156.54,19.68754859]
[1749487481636,26.07406027,156.58,156.54,19.68754859]
[1749487481817,18.79181043,156.57,156.54,19.68754859]
[1749487482227,26.07406027,156.58,156.53,19.68754859]
[1749487482621,6.38732754,156.56,156.53,19.68754859]
[1749487483244,6.38732754,156.56,156.53,29.38382046]
[1749487483912,25.03656844,156.57,156.53,29.38382046]
[1749487484841,2.73291378,156.61,156.53,29.38382046]
[1749487484842,2.73291378,156.61,156.57,1.5783]
[1749487485042,2.73291378,156.61,156.6,29.38382046]
[1749487485242,2.73291378,156.61,156.6,32.58830252]
[1749487486042,2.73291378,156.61,156.6,29.38382046]
[1749487487822,2.73291378,156.61,156.6,35.7695165]
[1749487488044,2.73291378,156.61,156.6,29.38382046]
[1749487489442,2.73291378,156.61,156.57,1.5783]
[1749487489736,2.73291378,156.61,156.59,29.38382046]
[1749487490145,2.73291378,156.61,156.6,29.38382046]
[1749487490445,0.8626814,156.62,156.6,29.38382046]
[1749487490446,0.8626814,156.62,156.61,6.2346]
[1749487490617,29.38382046,156.73,156.64,26.0]
[1749487490820,29.38382046,156.72,156.67,29.38382046]
[1749487491125,48.31779246,156.73,156.68,29.38382046]
[1749487491643,35.76421987,156.73,156.68,29.38382046]
[1749487491832,28.88382046,156.7,156.63,51.7]
[1749487492148,28.38382046,156.7,156.65,29.38382046]
[1749487492348,90.04382046,156.78,156.65,29.38382046]
[1749487492349,6.37958532,156.75,156.69,6.2346]
[1749487492523,6.37958532,156.75,156.73,29.38382046]
[1749487492842,6.37923968,156.76,156.73,29.38382046]
[1749487493053,6.37923968,156.76,156.75,29.38382046]
[1749487493264,6.37923968,156.76,156.74,29.38382046]
[1749487493419,26.0,156.76,156.69,35.61842046]
[1749487493626,32.37918609,156.76,156.74,29.38382046]
[1749487494035,32.37918609,156.76,156.73,29.38382046]
[1749487494237,6.37918609,156.76,156.75,29.38382046]
[1749487494571,29.38382046,156.81,156.75,29.38382046]
[1749487494730,29.38382046,156.8,156.75,29.38382046]
[1749487494921,29.38382046,156.79,156.75,29.38382046]
[1749487495223,55.38382046,156.79,156.75,29.38382046]
[1749487495428,6.37836458,156.78,156.75,29.38382046]
[1749487495647,29.38382046,156.77,156.73,29.38382046]
[1749487495851,29.38382046,156.76,156.7,11.04]
[1749487496058,29.38382046,156.76,156.71,29.38382046]
[1749487496624,29.38382046,156.74,156.69,6.2346]
[1749487496951,29.38382046,156.74,156.7,29.38382046]
[1749487497325,29.38382046,156.74,156.69,35.61842046]
[1749487497526,6.38039941,156.73,156.69,35.61842046]
[1749487498158,51.7152184,156.73,156.68,40.42382046]
[1749487498561,51.7152184,156.73,156.69,29.38382046]
[1749487499456,29.38382046,156.72,156.68,11.04]
[1749487499640,29.38382046,156.72,156.68,40.42382046]
[1749487499841,29.38382046,156.72,156.68,11.04]
[1749487500063,29.38382046,156.71,156.68,11.04]
[1749487500270,29.38382046,156.69,156.65,6.1556]
[1749487500436,29.38382046,156.68,156.64,29.38382046]
[1749487500631,29.38382046,156.68,156.63,42.08742046]
[1749487500874,26.0,156.7,156.63,12.7036]
[1749487501042,0.14216157,156.69,156.63,42.08742046]
[1749487501236,29.38382046,156.68,156.63,42.08742046]
[1749487501435,29.38382046,156.67,156.63,42.08742046]
[1749487501643,51.72234483,156.68,156.63,42.08742046]
[1749487501844,35.76625599,156.68,156.63,42.08742046]
[1749487502077,6.38243553,156.68,156.64,29.38382046]
[1749487502257,6.38243553,156.68,156.65,29.38382046]
[1749487502541,6.38212213,156.69,156.67,29.38382046]
[1749487502962,26.0,156.7,156.68,29.38382046]
[1749487502963,6.38165912,156.7,156.68,29.38382046]
[1749487504046,6.38165912,156.7,156.67,29.38382046]
[1749487504448,6.38165912,156.7,156.66,29.38382046]
[1749487504967,6.38165912,156.7,156.67,29.38382046]
[1749487505267,6.38129233,156.71,156.68,29.38382046]
[1749487506646,6.38087985,156.72,156.7,29.38382046]
[1749487506843,6.38087985,156.72,156.69,29.38382046]
[1749487507284,6.38087985,156.72,156.7,29.38382046]
[1749487508164,6.37999234,156.74,156.71,29.38382046]
[1749487509156,6.37999234,156.74,156.7,29.38382046]
[1749487509544,35.7638128,156.74,156.69,46.60142046]
[1749487509740,29.38382046,156.73,156.69,17.2176]
[1749487509944,51.71379366,156.74,156.69,17.2176]
[1749487510346,51.71379366,156.74,156.69,46.60142046]
[1749487511343,29.38382046,156.73,156.69,17.2176]
[1749487511772,6.38080653,156.72,156.69,17.2176]
[1749487511956,5.38080653,156.72,156.69,17.2176]
[1749487512152,29.38382046,156.71,156.69,11.04]
[1749487512356,48.17563089,156.7,156.66,6.303]
[1749487512666,29.38382046,156.67,156.63,12.7036]
[1749487513351,29.38382046,156.66,156.63,12.7036]
[1749487513855,6.38365783,156.65,156.63,12.7036]
[1749487515175,6.38325035,156.66,156.63,12.7036]
[1749487515678,6.38325035,156.66,156.63,42.08742046]
[1749487515988,6.38325035,156.66,156.65,29.38382046]
[1749487516149,6.38325035,156.66,156.63,42.08742046]
[1749487516344,22.34137622,156.66,156.63,11.04]
[1749487517271,6.38325035,156.66,156.65,29.38382046]
[1749487518060,6.38325035,156.66,156.64,29.38382046]
[1749487518269,6.38325035,156.66,156.63,11.04]
[1749487518570,6.38325035,156.66,156.63,40.42382046]
[1749487518769,6.38325035,156.66,156.63,11.04]
[1749487519165,6.38325035,156.66,156.63,40.42382046]
[1749487519675,35.76707081,156.66,156.62,6.303]
[1749487520054,35.76707081,156.66,156.62,35.68682046]
[1749487520770,35.76707081,156.66,156.62,6.303]